Cogmind - Beta 16 @@@ ROGUE MODE // 2026.01.17 @ 06:48:46 Player: Rocket Result: Destroyed by D-53 Grenadier with Mini Grenade Launcher Performance ------------- Evolutions (1) 500 Regions Visited (4) 800 Robots Destroyed (15) 75 Value Destroyed (252) 252 Prototype IDs (1) 20 Alien Tech Used (0) 0 Bonus (0) 0 TOTAL SCORE: 1647 Bonus ------- None Cogmind --------- Core Integrity 0/400 Matter 14/300 Energy 100/100 System Corruption 9% Temperature Cool (79) Movement Core (700) Ox13 Location -9/Mines Parts ------- > --- POWER (1) -------- (None) > --- PROPULSION (4) --- (None) > --- UTILITY (2) ------ High-capacity Storage Unit > --- WEAPON (2) ------- (None) > --- INVENTORY (20) --- Ion Engine Ion Engine Light Ion Engine Light Ion Engine Small Storage Unit Targeting Computer Medium Laser Small Laser Light Assault Rifle Light Assault Rifle Peak State ------------ > --- POWER ------------ Ion Engine > --- PROPULSION ------- Aluminum Leg Aluminum Leg Aluminum Leg Aluminum Leg > --- UTILITY ---------- High-capacity Storage Unit Medium Matter Pod > --- WEAPON ----------- Improved Medium Laser Assault Rifle > --- INVENTORY -------- Ion Engine Light Ion Engine Light Ion Engine Light Ion Engine Aluminum Leg Aluminum Leg Small Storage Unit Targeting Computer Medium Laser Small Laser Light Assault Rifle Light Assault Rifle [Rating: 12] Favorites ----------- Power Ion Engine Engine Ion Engine Propulsion Aluminum Leg Leg Aluminum Leg Utility Medium Matter Pod Storage Medium Matter Pod Weapon Assault Rifle Energy Gun Medium Laser Ballistic Gun Assault Rifle Launcher Grenade Launcher Build | -11 -10 -10 -9 -9 ------- Run | Yrd Mat Min Mat Min Slots Evolved 2 | . . . 2 . Power . | . . . . . Propulsion 2 | . . . 2 . Utility . | . . . . . Weapon . | . . . . . Parts Attached 17 | 6 1 . 5 5 Power 2 | 1 . . . 1 Engine 2 | 1 . . . 1 Core . | . . . . . Reactor . | . . . . . Propulsion 6 | 2 . . 2 2 Treads . | . . . . . Leg 6 | 2 . . 2 2 Wheel . | . . . . . Hover . | . . . . . Flight . | . . . . . Utility 3 | 1 1 . 1 . Device . | . . . . . Storage 3 | 1 1 . 1 . Processor . | . . . . . Hackware . | . . . . . Protection . | . . . . . Artifact . | . . . . . Weapon 6 | 2 . . 2 2 Energy Gun 4 | 1 . . 1 2 Energy Cannon . | . . . . . Ballistic Gun 1 | 1 . . . . Ballistic Cannon . | . . . . . Launcher 1 | . . . 1 . Special Weapon . | . . . . . Impact Weapon . | . . . . . Slashing Weapon . | . . . . . Piercing Weapon . | . . . . . Special Melee Weapon . | . . . . . Unidentified Prototypes 1 | . . . 1 . Parts Lost 12 | . . . . 12 Power 1 | . . . . 1 Propulsion 6 | . . . . 6 Utility 1 | . . . . 1 Weapon 4 | . . . . 4 Highest Loss Streak 12 | . . . . 12 To Critical Strikes . | . . . . . Average Backups 7 | . 4 6 10 13 Power 2 | . 2 2 2 4 Propulsion . | . . . . 1 Utility 1 | . . 1 1 2 Weapon 3 | . 2 3 4 5 Tool/Special . | . . . . . Unused Backups 8 | 1 . . . 7 Power 3 | . . . . 3 Propulsion 1 | 1 . . . . Utility 1 | . . . . 1 Weapon 3 | . . . . 3 Tool/Special . | . . . . . Average Slot Usage (%) 85 | . 87 100 87 59 Engine 11 | . 14 14 10 6 Leg 29 | . 28 28 33 21 Storage 20 | . 16 28 22 15 Energy Gun 9 | . 14 14 6 8 Ballistic Gun 11 | . 14 14 10 7 Launcher 1 | . . . 3 2 Peak Build Rating 12 | 6 7 7 12 12 Average Rating 7 | 4 6 7 9 7 On Entrance 6 | . 6 7 7 12 Avg Prop Armor Cover (%) . | . . . . . Naked Turns . | . . . . . Heaviest Build 52 | 14 16 16 52 52 Greatest Support 40 | 20 20 20 40 40 Greatest Overweight (x) 13 | . . . 5 13 Average Overweight (x) . | . . . . 4 Largest Inventory Capacity 20 | 8 8 8 20 20 Average Capacity 12 | 7 8 8 15 20 Most Carried 15 | 2 6 6 15 15 Average Carried 7 | . 4 6 10 12 Final Capacity 20 | 8 8 8 20 20 Final Carried 15 | 2 6 6 15 10 Class Distribution -------------------- 100% | Mutant Dominant Class ---------------- Mutant | -10/Materials Mutant | -10/Mines Mutant | -9/Materials Mutant | -9/Mines Resources | -11 -10 -10 -9 -9 ----------- Run | Yrd Mat Min Mat Min Matter Collected 390 | 239 . . 147 4 Remotely . | . . . . . Salvage Created 586 | 162 26 . 304 94 Parts 41 | 22 3 . 16 . Haulers Intercepted 1 | . . . 1 . Recyclers Shooed 1 | . . . 1 . Parts Field Recycled . | . . . . . Retrieved Matter . | . . . . . Parts Self-Destructed . | . . . . . Prevented . | . . . . . Parts Restored . | . . . . . Kills | -11 -10 -10 -9 -9 ------- Run | Yrd Mat Min Mat Min Combat Hostiles Destroyed 18 | . . . 5 13 Guns 7 | . . . . 7 AOE 11 | . . . 5 6 Classes Destroyed 8 | 2 1 . 4 1 Builder 1 | . 1 . . . Tunneler 4 | 4 . . . . Hauler 1 | . . . 1 . Recycler 3 | 1 . . 2 . Watcher 1 | . . . 1 . Grunt 4 | . . . 4 . Duelist 1 | . . . 1 . Assembled 13 | . . . . 13 Best Kill Streak 13 | 5 1 . 6 13 Combat Bots Only 13 | . . . 3 13 Max Kills in Single Turn 3 | 1 1 . 2 3 Gunslinging . | . . . . . Exploded 3 | . . . 2 3 Melee . | . . . . . Uniques/NPCs Destroyed . | . . . . . Combat | -11 -10 -10 -9 -9 -------- Run | Yrd Mat Min Mat Min Hostile Shots Fired 89 | . 3 . 4 82 Missed 29 | . 2 . 1 26 Hits 60 | . 1 . 3 56 Melee 20 | . . . . 20 Projectile 40 | . 1 . 3 36 AOE 10 | . . . . 10 Damage Taken 1329 | . 9 . 45 1275 Core 404 | . . . . 404 Absorbed by Shields . | . . . . . Core Remaining (%) 100 | 100 . 100 . . Volleys Fired 41 | 11 2 1 8 19 Largest 2 | 2 2 2 2 2 Hottest 86 | 70 70 70 50 86 Shots Fired 79 | 22 4 2 16 35 Gun 66 | 22 4 2 8 30 Cannon . | . . . . . Launcher 13 | . . . 8 5 Special . | . . . . . Kinetic 36 | 11 2 1 8 14 Thermal 30 | 11 2 1 . 16 Explosive 13 | . . . 8 5 Electromagnetic . | . . . . . Robot Hit Streak 7 | 3 2 . 1 7 Robot Miss Streak 3 | 2 1 . 1 3 Penetration Max . | . . . . . Secondary Targets 2 | . . . . 2 Max Gunslinging Chain 1 | . . . . 1 Shots Hit Robots 28 | 7 2 . 1 18 Core Hits 50 | 6 1 1 15 27 Critical Kills . | . . . . . Critical Parts Destroyed . | . . . . . Critical Strikes . | . . . . . Melee Attacks . | . . . . . Impact . | . . . . . Slashing . | . . . . . Piercing . | . . . . . Sneak Attacks . | . . . . . Combat Hostiles . | . . . . . Follow-up Attacks . | . . . . . Damage Inflicted 1500 | 140 26 10 461 863 Guns 534 | 140 26 10 28 330 Cannons . | . . . . . Explosions 966 | . . . 433 533 Melee . | . . . . . Ramming . | . . . . . Kinetic 257 | 78 13 10 28 128 Thermal 277 | 62 13 . . 202 Explosive 966 | . . . 433 533 Electromagnetic . | . . . . . Impact . | . . . . . Slashing . | . . . . . Piercing . | . . . . . Highest Corruption 9 | . 2 2 . 9 Average Corruption 3 | . 2 2 . 6 Corruption Purged . | . . . . . Corruption Blocked . | . . . . . Effects 3 | . . . . 3 Matter Fused 1 | . . . . 1 Heat Flow Errors 1 | . . . . 1 Parts Rejected 1 | . . . . 1 Overload Shots . | . . . . . Overflow Damage 12 | . . . . 12 Projectiles . | . . . . . Explosions 12 | . . . . 12 Melee . | . . . . . Knockbacks . | . . . . . Impact . | . . . . . Kinetic . | . . . . . Secondary . | . . . . . Self-Inflicted Damage 23 | . . . 14 9 Shots 2 | . . . 1 1 Rammed . | . . . . . Targets Rammed . | . . . . . Kicked . | . . . . . Crushed . | . . . . . Highest Temperature 191 | 99 18 9 . 191 Average Temperature 44 | 50 10 6 . 46 Received Heat Transfer 18 | . . . 18 . Siege Activations . | . . . . . Martial Activations . | . . . . . Shielding Activations . | . . . . . Robots Disrupted . | . . . . . Combat Hostiles . | . . . . . Robots Corrupted . | . . . . . Combat Hostiles . | . . . . . Parts Fried . | . . . . . Impact Corruptions . | . . . . . Robots Melted . | . . . . . Combat Hostiles . | . . . . . Parts Melted . | . . . . . Heat Transferred 666 | 185 37 . . 444 Parts Sabotaged . | . . . . . Parts Stolen . | . . . . . Parts Stripped . | . . . . . Power Chain Reactions . | . . . . . Alert | -11 -10 -10 -9 -9 ------- Run | Yrd Mat Min Mat Min Maximum Alert Level . | . . . . . Low Security (%) 100 | 100 100 100 100 100 Level 1 . | . . . . . Level 2 . | . . . . . Level 3 . | . . . . . Level 4 . | . . . . . Level 5 . | . . . . . High Security . | . . . . . Max Security . | . . . . . Peak Influence 139 | 15 5 . 139 28 Initial 28 | . . . . 28 Average 28 | 2 . . 69 8 Influence Increases 235 | 25 5 . 174 31 Destroy 0b10 Robot/C 100 | . . . 100 . Destroy 0b10 Robot/NC 50 | 25 5 . 20 . Destroy Leader 14 | . . . 14 . Successful Hack 5 | . . . 5 . Destroy Structure 66 | . . . 35 31 Influence Decreases 235 | 25 5 . 100 105 Entered New Map 46 | . . . . 46 Time Decay 150 | 25 5 . 100 20 Lost Part 39 | . . . . 39 Squads Dispatched 1 | . 1 . . . Investigation . | . . . . . Extermination . | . . . . . Reinforcement 1 | . 1 . . . Assault . | . . . . . Garrison . | . . . . . Intercept . | . . . . . Searches Triggered . | . . . . . Construction Impeded . | . . . . . Haulers Reinforced . | . . . . . Active Scanning Responses . | . . . . . Cargo Convoy Interrupts . | . . . . . Stealth | -11 -10 -10 -9 -9 --------- Run | Yrd Mat Min Mat Min Distress Signals 3 | . 1 . 2 . Communications Jammed . | . . . . . Distress Signals . | . . . . . Times Spotted 27 | . 3 . 7 17 Peak Tracking Total 10 | . 4 . 3 10 Tactical Retreats . | . . . . . Traps | -11 -10 -10 -9 -9 ------- Run | Yrd Mat Min Mat Min Traps Triggered 5 | . 1 . 4 . Indirectly . | . . . . . Trap Hack Attempts . | . . . . . Triggered . | . . . . . Disarmed . | . . . . . Reprogrammed . | . . . . . Reused . | . . . . . Traps Extracted . | . . . . . Installed . | . . . . . Triggered . | . . . . . Machines | -11 -10 -10 -9 -9 ---------- Run | Yrd Mat Min Mat Min Machines Disabled 1 | . 1 . . . Max in Single Turn 1 | . 1 . . . Machines Repaired . | . . . . . Machines Dismantled . | . . . . . Machines Sabotaged . | . . . . . Overloaded Fab Kills . | . . . . . Hacking | -11 -10 -10 -9 -9 --------- Run | Yrd Mat Min Mat Min Machines Accessed 1 | . . . 1 . Terminals 1 | . . . 1 . Fabricators . | . . . . . Repair Stations . | . . . . . Recycling Units . | . . . . . Scanalyzers . | . . . . . Garrison Access . | . . . . . Total Hacks 1 | . . . 1 . Successful 1 | . . . 1 . Failed . | . . . . . Catastrophic . | . . . . . Database Lockouts . | . . . . . Manual . | . . . . . Terminals 1 | . . . 1 . Fabricators . | . . . . . Repair Stations . | . . . . . Recycling Units . | . . . . . Scanalyzers . | . . . . . Garrison Access . | . . . . . Terminal Hacks 1 | . . . 1 . Robot Analysis 1 | . . . 1 . Fabricator Hacks . | . . . . . Repair Station Hacks . | . . . . . Recycling Unit Hacks . | . . . . . Scanalyzer . | . . . . . Garrison Access Hacks . | . . . . . Unauthorized Hacks . | . . . . . Terminals . | . . . . . Fabricators . | . . . . . Repair Stations . | . . . . . Recycling Units . | . . . . . Scanalyzers . | . . . . . Garrison Access . | . . . . . Data Cores Recovered . | . . . . . Used . | . . . . . Hacking Detections . | . . . . . Full Trace Events . | . . . . . Feedback Events . | . . . . . Feedback Blocked . | . . . . . Robot Schematics Acquired . | . . . . . Robots Built . | . . . . . Authchips . | . . . . . Time . | . . . . . Total Robot Build Rating . | . . . . . Part Schematics Acquired . | . . . . . Parts Built . | . . . . . Authchips . | . . . . . Time . | . . . . . Total Part Build Rating . | . . . . . Part Studies Acquired . | . . . . . Parts Repaired . | . . . . . Time . | . . . . . Parts Recycled . | . . . . . Recycled Matter . | . . . . . Retrieved Matter . | . . . . . Retrieved Components . | . . . . . Parts Scanalyzed . | . . . . . Part Schematics Acquired . | . . . . . Parts Damaged . | . . . . . Bothacking | -11 -10 -10 -9 -9 ------------ Run | Yrd Mat Min Mat Min Used RIF Installer . | . . . . . Robots Hacked . | . . . . . Non-combat . | . . . . . Combat . | . . . . . Robot Hacks Applied . | . . . . . Relay Couplers Released . | . . . . . Fabnet Peak Effective % . | . . . . . Robots Rewired . | . . . . . Allies Hacked . | . . . . . Hacks Repelled . | . . . . . Allies | -11 -10 -10 -9 -9 -------- Run | Yrd Mat Min Mat Min Total Allies . | . . . . . Largest Group . | . . . . . Highest-Rated Group . | . . . . . Highest-Rated Ally . | . . . . . Total Orders . | . . . . . Ally Attacks . | . . . . . Total Damage . | . . . . . Kills . | . . . . . Allies Corrupted . | . . . . . Allies Melted . | . . . . . Intel | -11 -10 -10 -9 -9 ------- Run | Yrd Mat Min Mat Min Active Infowar (turns) . | . . . . . Robot Analysis Total 1 | . . . 1 . Derelict Logs Recovered . | . . . . . Drone Launches . | . . . . . Drone Recoveries . | . . . . . Exploration | -11 -10 -10 -9 -9 ------------- Run | Yrd Mat Min Mat Min Turns Passed 790 | 138 124 120 308 100 Spaces Moved 444 | 82 94 98 159 11 Core 13 | 7 . . 3 3 Treads . | . . . . . Legs 431 | 75 94 98 156 8 Wheels . | . . . . . Hover . | . . . . . Flight . | . . . . . Fastest Speed 50 | 50 120 120 120 190 Average Speed 138 | 114 120 120 159 329 Slowest Speed 700 | 120 120 120 300 700 Overloaded Moves . | . . . . . Propulsion Burnouts . | . . . . . Robots Hopped . | . . . . . Potential Cave-ins . | . . . . . Cave-ins Triggered . | . . . . . Exploration Rate (%) 16 | 6 25 29 18 6 Regions Visited 4 Branch Regions 2 Pre-discovered Areas . | . . . . . Known Exits Taken . | . . . . . Unknown Exits Taken 4 | 1 1 1 1 . Scrap Searched . | . . . . . Spaces Dug . | . . . . . Terrain Destroyed 94 | . . . 55 39 Melee . | . . . . . Projectile . | . . . . . AOE 94 | . . . 55 39 Terrain Rammed . | . . . . . Walls Destroyed . | . . . . . Machines Disabled . | . . . . . Actions | -11 -10 -10 -9 -9 --------- Run | Yrd Mat Min Mat Min Total 533 | 102 100 98 190 43 Wait 6 | . . . . 6 Move 440 | 81 93 97 158 11 Hop . | . . . . . Pick Up 16 | 3 4 . 9 . Fast Attach 19 | 6 1 . 12 . Attach 5 | . . . . 5 Detach . | . . . . . Swap 5 | . . . 3 2 Drop 1 | 1 . . . . Fire 41 | 11 2 1 8 19 Melee . | . . . . . Ram . | . . . . . Kick . | . . . . . Crush . | . . . . . Escape Stasis . | . . . . . Rewire . | . . . . . Trap . | . . . . . Miscellaneous . | . . . . . Route ------- -11/Scrapyard -10/Materials -10/Mines -9/Materials -9/Mines History --------- Turn | Location | Event 3 | -11/Scrapyard | Discovered new exit (range 15) 139 | -11/Scrapyard | Entered Materials 228 | -10/Materials | Discovered new exit (range 9) 263 | -10/Materials | Entered Mines 302 | -10/Mines | Build established: Mutant 372 | -10/Mines | Discovered new exit (range 6) 383 | -10/Mines | Entered Materials 383 | -9/Materials | Evolved 2 slots: Propulsion x2 668 | -9/Materials | Discovered new exit (range 7) 691 | -9/Materials | Entered Mines 692 | -9/Mines | Assembled infested the area 782 | -9/Mines | Core integrity fell below 50% 788 | -9/Mines | Destroyed 13 combat bots 789 | -9/Mines | Core integrity fell below 20% 791 | -9/Mines | Destroyed by D-53 Grenadier with Mini Grenade Launcher Last Messages --------------- 00756_ as-37735 destroyed. 00756_ as-64552 destroyed. 00757_ Knocked back. 00760_ as-16483 destroyed. 00760_ Switching to secondary target: as-63656. 00760_ Imp. Medium Laser destroyed. 00760_ System corrupted by crushing effect (+4). 00763_ as-63656 destroyed. 00765_ Destroyed Asb. Hover Unit. 00767_ R-06 Scavenger collects Imp. Terrain Scanner. 00767_ as-36533 destroyed. 00768_ Acquired 2 matter. 00771_ R-06 Scavenger collects Wheel. 00775_ Acquired 2 matter. 00776_ Assault Rifle destroyed. 00778_ The unstable cave ceiling collapses. 00786_ System corrupted: Heat flow error (+219). 00786_ The unstable cave ceiling collapses. 00790_ U-05 Engineer lays Concrete. Map ----- +----------------------------------------------------+ | | | | | | | ?????????????????????????????????????????? | | ?????????????????????????????????????????? | | ?????????????????????????????????????????? | | ?????????????????????????????????????????? | | ?????????????????????????????????????????? | | ?????????????????????????????????????????? | | ?????????????????????????????????????????? | | ?????????????????????????????????????????? | | ?????????????????????????????????????????? | | ?????????????????????????????????????????? | | ?????????????????????????????????????????? | | ?????????????????????????????????????????? | | ?????????????????????????????????????????? | | ?????????????????????????????????????????? | | ???????????????????????????? ????????????? | | ???????????????????????#??? ???????????? | | ?????????????????????? ?## #??????????? | | ????????????????????? ? #??????????? | | ????????????#######?## ##??????????? | | ???????????## ## #??????????? | | ???????????# # r " #??????????? | | ???????????# # #??????????? | | ???????????# @ d u #??????????? | | ???????????# d # #??????????? | | ???????????# # #?????????????? | | ???????????# ##???????????????? | | ???????????# ####????????????????? | | ???????????## ##???????????????????? | | ????????????## ###????????????????????? | | ?????????????######??????????????????????? | | ?????????????????????????????????????????? | | ?????????????????????????????????????????? | | ?????????????????????????????????????????? | | ?????????????????????????????????????????? | | ?????????????????????????????????????????? | | ?????????????????????????????????????????? | | ?????????????????????????????????????????? | | ?????????????????????????????????????????? | | ?????????????????????????????????????????? | | ?????????????????????????????????????????? | | ?????????????????????????????????????????? | | ?????????????????????????????????????????? | | ?????????????????????????????????????????? | | ?????????????????????????????????????????? | | ?????????????????????????????????????????? | | ?????????????????????????????????????????? | | ?????????????????????????????????????????? | +----------------------------------------------------+ Best States ------------- Heat Dissipation 28 Energy Generation 10 Energy Capacity 250 Matter Stores 246 Matter Capacity 400 Sight Range 16 Terrain Scan Density 10 Evasion (%) 55 Item Schematics ----------------- None Robot Schematics ------------------ None Fabricated ------------ Nothing Repaired ---------- Nothing Studied --------- None Alien Tech Used ----------------- None Achievements -------------- None Challenges ------------ None Game ------ Seed CooledWarlordMultirail Manual? 0 Play Time 00:05:39 Cumulative 75.8 hours Start 2026.01.17 @ 06:44:29 End 2026.01.17 @ 06:48:46 Sessions 1 Manual Loads 0 Difficulty Rogue Special Mode None Game No. 112 Rogue 112 Adventurer 0 Explorer 0 Win Type - Total 0 Types 0/0/0/0/0/0/0/0/0/0 Lore% 17 Gallery% 35 Achievement% 25 Wizard Run 0 Options --------- Layout 1 ASCII 0 Keyboard 0 Movement Mouse Keybinds 0 Fullscreen 2 Font 24/Smallcaps Map View 25x17 Zoom Use 79% Tactical HUD 1 Map Filters NONE Filters NONE Steam 1 RUN: b77bcdb9-7a9c-40eb-84bc-5a223230237e